Cogmind - Beta 14 @@@ ROGUE MODE // 2024.11.22 @ 22:04:27 Player: CoolCatCid Result: Destroyed by D-53 Grenadier with Mini Grenade Launcher Performance ------------- Evolutions (1) 500 Regions Visited (4) 800 Robots Destroyed (16) 80 Value Destroyed (345) 345 Prototype IDs (0) 0 Alien Tech Used (0) 0 Bonus (25) 25 TOTAL SCORE: 1750 Bonus ------- Follower Combat Kills 25 Cogmind --------- Core Integrity 0/400 Matter 300/300 Energy 99/100 System Corruption 0% Temperature Cool (0) Movement Core (100) Ox1 Location -9/Mines Parts ------- > --- POWER (1) -------- (None) > --- PROPULSION (2) --- (None) > --- UTILITY (3) ------ Small Storage Unit Visual Processing Unit > --- WEAPON (3) ------- (None) > --- INVENTORY (8) ---- Improved Ion Engine Aluminum Leg Aluminum Leg Improved Heat Sink ECM Suite Hardened Medium Armor Plating Hardened Medium Armor Plating Peak State ------------ > --- POWER ------------ Light Nuclear Core > --- PROPULSION ------- Aluminum Leg Aluminum Leg > --- UTILITY ---------- Improved Heat Sink Small Storage Unit Visual Processing Unit > --- WEAPON ----------- Shock Rifle Shock Rifle Assault Rifle > --- INVENTORY -------- Ion Engine Aluminum Leg Aluminum Leg Heat Sink ECM Suite Hardened Medium Armor Plating Hardened Medium Armor Plating Light Assault Rifle [Rating: 19] Favorites ----------- Power Light Nuclear Core Engine Ion Engine Power Core Light Nuclear Core Propulsion Aluminum Leg Leg Aluminum Leg Utility Small Storage Unit Device ECM Suite Storage Small Storage Unit Processor Visual Processing Unit Weapon Assault Rifle Energy Gun Shock Rifle Ballistic Gun Assault Rifle Build | -11 -10 -10 -9 -9 ------- Run | Yrd Mat Min Mat Min Slots Evolved 2 | . . . 2 . Power . | . . . . . Propulsion . | . . . . . Utility 1 | . . . 1 . Weapon 1 | . . . 1 . Parts Attached 28 | 6 10 3 6 3 Power 4 | 1 3 . . . Engine 3 | 1 2 . . . Core 1 | . 1 . . . Reactor . | . . . . . Propulsion 7 | 2 3 . 1 1 Treads . | . . . . . Leg 7 | 2 3 . 1 1 Wheel . | . . . . . Hover . | . . . . . Flight . | . . . . . Utility 6 | 1 2 . 2 1 Device 4 | . 2 . 1 1 Storage 1 | 1 . . . . Processor 1 | . . . 1 . Hackware . | . . . . . Protection . | . . . . . Artifact . | . . . . . Weapon 11 | 2 2 3 3 1 Energy Gun 4 | . 1 1 2 . Energy Cannon . | . . . . . Ballistic Gun 7 | 2 1 2 1 1 Ballistic Cannon . | . . . . . Launcher . | . . . . . Special Weapon . | . . . . . Impact Weapon . | . . . . . Slashing Weapon . | . . . . . Piercing Weapon . | . . . . . Special Melee Weapon . | . . . . . Unidentified Prototypes . | . . . . . Corrupted Parts 1 | . 1 . . . System Corruption 1 | . 1 . . . Parts Lost 12 | . 3 . 2 7 Power 2 | . 1 . . 1 Propulsion 2 | . . . . 2 Utility 2 | . . . 1 1 Weapon 6 | . 2 . 1 3 Highest Loss Streak 7 | . 3 . 1 7 To Critical Strikes . | . . . . . Average Slot Usage (%) 95 | . 99 100 97 76 Engine 6 | . 10 . . . Core 6 | . 3 14 11 6 Leg 25 | . 27 28 22 15 Device 12 | . 13 14 9 9 Storage 13 | . 14 14 11 11 Processor 3 | . . . 11 11 Energy Gun 3 | . . 3 15 7 Ballistic Gun 23 | . 27 24 16 14 Peak Build Rating 19 | 6 10 10 19 17 Average Rating 9 | 4 7 10 14 11 On Entrance 8 | . 6 10 10 16 Naked Turns . | . . . . . Heaviest Build 19 | 13 15 15 19 17 Greatest Support 20 | 20 20 20 20 20 Greatest Overweight (x) 4 | 4 4 . . 2 Average Overweight (x) . | . . . . . Largest Inventory Capacity 8 | 8 8 8 8 8 Average Capacity 7 | 7 8 8 8 8 Most Carried 8 | 6 8 8 8 7 Average Carried 7 | 3 7 7 6 7 Final Capacity 8 | 8 8 8 8 8 Final Carried 8 | 6 8 8 8 7 Class Distribution -------------------- 75% | Mutant 24% | Scavenger-Skirmisher Dominant Class ---------------- Mutant | -10/Materials Mutant | -10/Mines Scavenger-Skirmisher | -9/Materials Scavenger-Skirmisher | -9/Mines Resources | -11 -10 -10 -9 -9 ----------- Run | Yrd Mat Min Mat Min Matter Collected 623 | 205 272 42 87 17 Remotely . | . . . . . Salvage Created 602 | . 377 126 99 . Parts 35 | . 24 4 7 . Haulers Intercepted . | . . . . . Recyclers Shooed 2 | . 2 . . . Parts Field Recycled . | . . . . . Retrieved Matter . | . . . . . Parts Self-Destructed . | . . . . . Prevented . | . . . . . Kills | -11 -10 -10 -9 -9 ------- Run | Yrd Mat Min Mat Min Combat Hostiles Destroyed 12 | . 7 1 4 . Guns 12 | . 7 1 4 . Classes Destroyed 5 | . 4 . 1 . Recycler 3 | . 2 1 . . Watcher 1 | . 1 . . . Swarmer 6 | . 3 . 3 . Grunt 5 | . 4 1 . . Sentry 1 | . . . 1 . Best Kill Streak 4 | . 4 2 4 . Combat Bots Only 4 | . 4 1 4 . Max Kills in Single Turn 2 | . 2 1 2 . Gunslinging 1 | . 1 . 1 . Exploded . | . . . . . Melee . | . . . . . Uniques/NPCs Destroyed . | . . . . . Combat | -11 -10 -10 -9 -9 -------- Run | Yrd Mat Min Mat Min Hostile Shots Fired 154 | . 104 1 21 28 Missed 51 | . 34 1 8 8 Damage Taken 1672 | . 612 . 228 832 Core 516 | . 106 . 9 401 Absorbed by Shields . | . . . . . Core Remaining (%) 78 | 100 . 57 . . Volleys Fired 46 | . 35 3 8 . Largest 3 | . 2 2 3 . Hottest 80 | . 60 40 80 . Shots Fired 99 | . 69 6 24 . Gun 99 | . 69 6 24 . Cannon . | . . . . . Launcher . | . . . . . Special . | . . . . . Kinetic 84 | . 62 6 16 . Thermal 8 | . . . 8 . Explosive . | . . . . . Electromagnetic 7 | . 7 . . . Robot Hit Streak 12 | . 7 4 12 . Robot Miss Streak 6 | . 6 1 5 . Penetration Max . | . . . . . Secondary Targets 2 | . 1 . 1 . Max Gunslinging Chain 1 | . 1 . 1 . Shots Hit Robots 61 | . 42 4 15 . Core Hits 28 | . 19 3 6 . Critical Kills . | . . . . . Critical Parts Destroyed . | . . . . . Critical Strikes . | . . . . . Melee Attacks . | . . . . . Impact . | . . . . . Slashing . | . . . . . Piercing . | . . . . . Sneak Attacks . | . . . . . Combat Hostiles . | . . . . . Follow-up Attacks . | . . . . . Damage Inflicted 662 | . 456 42 164 . Guns 662 | . 456 42 164 . Cannons . | . . . . . Explosions . | . . . . . Melee . | . . . . . Ramming . | . . . . . Kinetic 539 | . 397 42 100 . Thermal 64 | . . . 64 . Explosive . | . . . . . Electromagnetic 59 | . 59 . . . Impact . | . . . . . Slashing . | . . . . . Piercing . | . . . . . Highest Corruption 1 | . 1 1 . . Average Corruption 1 | . 1 1 . . Corruption Purged . | . . . . . Corruption Blocked . | . . . . . Effects 3 | . 3 . . . Message Errors 1 | . 1 . . . Heat Flow Errors 1 | . 1 . . . Energy Discharges 1 | . 1 . . . Overload Shots . | . . . . . Overflow Damage . | . . . . . Projectiles . | . . . . . Explosions . | . . . . . Melee . | . . . . . Knockbacks . | . . . . . Impact . | . . . . . Kinetic . | . . . . . Secondary . | . . . . . Self-Inflicted Damage . | . . . . . Shots . | . . . . . Rammed . | . . . . . Targets Rammed . | . . . . . Kicked . | . . . . . Crushed . | . . . . . Highest Temperature 182 | . 182 4 110 . Average Temperature 51 | . 59 3 52 . Received Heat Transfer 81 | . 72 . 9 . Siege Activations . | . . . . . Robots Corrupted . | . . . . . Combat Hostiles . | . . . . . Parts Fried . | . . . . . Impact Corruptions . | . . . . . Robots Melted . | . . . . . Combat Hostiles . | . . . . . Parts Melted . | . . . . . Heat Transferred 150 | . . . 150 . Parts Sabotaged . | . . . . . Parts Stolen . | . . . . . Parts Stripped . | . . . . . Power Chain Reactions . | . . . . . Alert | -11 -10 -10 -9 -9 ------- Run | Yrd Mat Min Mat Min Peak Influence 139 | . 139 91 106 37 Initial 37 | . . 30 35 37 Average 48 | . 51 55 80 29 Maximum Alert Level . | . . . . . Low Security (%) 100 | 100 100 100 100 100 Level 1 . | . . . . . Level 2 . | . . . . . Level 3 . | . . . . . Level 4 . | . . . . . Level 5 . | . . . . . High Security . | . . . . . Max Security . | . . . . . Squads Dispatched 1 | . 1 . . . Investigation 1 | . 1 . . . Extermination . | . . . . . Reinforcement . | . . . . . Assault . | . . . . . Garrison . | . . . . . Intercept . | . . . . . Searches Triggered . | . . . . . Construction Impeded . | . . . . . Haulers Reinforced . | . . . . . Active Scanning Responses . | . . . . . Cargo Convoy Interrupts . | . . . . . Stealth | -11 -10 -10 -9 -9 --------- Run | Yrd Mat Min Mat Min Distress Signals 3 | . 3 . . . Communications Jammed . | . . . . . Distress Signals . | . . . . . Times Spotted 36 | . 19 2 5 10 Peak Tracking Total 9 | . 6 2 4 9 Tactical Retreats 5 | . 4 . 1 . Traps | -11 -10 -10 -9 -9 ------- Run | Yrd Mat Min Mat Min Traps Triggered 4 | . 1 . 3 . Indirectly . | . . . . . Trap Hack Attempts . | . . . . . Triggered . | . . . . . Disarmed . | . . . . . Reprogrammed . | . . . . . Reused . | . . . . . Traps Extracted . | . . . . . Installed . | . . . . . Triggered . | . . . . . Machines | -11 -10 -10 -9 -9 ---------- Run | Yrd Mat Min Mat Min Machines Disabled 1 | . 1 . . . Max in Single Turn 1 | . 1 . . . Machines Repaired . | . . . . . Machines Dismantled . | . . . . . Machines Sabotaged . | . . . . . Overloaded Fab Kills . | . . . . . Hacking | -11 -10 -10 -9 -9 --------- Run | Yrd Mat Min Mat Min Machines Accessed 3 | . 2 . 1 . Terminals 3 | . 2 . 1 . Fabricators . | . . . . . Repair Stations . | . . . . . Recycling Units . | . . . . . Scanalyzers . | . . . . . Garrison Access . | . . . . . Total Hacks 6 | . 5 . 1 . Successful 3 | . 3 . . . Failed 3 | . 2 . 1 . Catastrophic 1 | . . . 1 . Database Lockouts . | . . . . . Manual 3 | . 2 . 1 . Terminals 6 | . 5 . 1 . Fabricators . | . . . . . Repair Stations . | . . . . . Recycling Units . | . . . . . Scanalyzers . | . . . . . Garrison Access . | . . . . . Terminal Hacks 3 | . 3 . . . Emergency Access Points 1 | . 1 . . . Dispatch Records 1 | . 1 . . . Hauler Manifests 1 | . 1 . . . Fabricator Hacks . | . . . . . Repair Station Hacks . | . . . . . Recycling Unit Hacks . | . . . . . Scanalyzer . | . . . . . Garrison Access Hacks . | . . . . . Unauthorized Hacks . | . . . . . Terminals . | . . . . . Fabricators . | . . . . . Repair Stations . | . . . . . Recycling Units . | . . . . . Scanalyzers . | . . . . . Garrison Access . | . . . . . Data Cores Recovered . | . . . . . Used . | . . . . . Hacking Detections 2 | . 1 . 1 . Full Trace Events . | . . . . . Feedback Events . | . . . . . Feedback Blocked . | . . . . . Robot Schematics Acquired . | . . . . . Robots Built . | . . . . . Authchips . | . . . . . Time . | . . . . . Total Robot Build Rating . | . . . . . Part Schematics Acquired . | . . . . . Parts Built . | . . . . . Authchips . | . . . . . Time . | . . . . . Total Part Build Rating . | . . . . . Parts Repaired . | . . . . . Time . | . . . . . Parts Recycled . | . . . . . Recycled Matter . | . . . . . Retrieved Matter . | . . . . . Retrieved Components . | . . . . . Parts Scanalyzed . | . . . . . Part Schematics Acquired . | . . . . . Parts Damaged . | . . . . . Bothacking | -11 -10 -10 -9 -9 ------------ Run | Yrd Mat Min Mat Min Used RIF Installer . | . . . . . Robots Hacked . | . . . . . Non-combat . | . . . . . Combat . | . . . . . Robot Hacks Applied . | . . . . . Relay Couplers Released . | . . . . . Fabnet Peak Effective % . | . . . . . Robots Rewired . | . . . . . Allies Hacked . | . . . . . Hacks Repelled . | . . . . . Allies | -11 -10 -10 -9 -9 -------- Run | Yrd Mat Min Mat Min Total Allies 2 | . . 2 . . Largest Group 2 | . . 2 1 . Highest-Rated Group 43 | . . 43 12 . Highest-Rated Ally 31 | . . 31 12 . Total Orders . | . . . . . Ally Attacks 8 | . . 8 . . Total Damage 146 | . . 146 . . Kills 1 | . . 1 . . Allies Corrupted . | . . . . . Allies Melted 1 | . . 1 . . Intel | -11 -10 -10 -9 -9 ------- Run | Yrd Mat Min Mat Min Robot Analysis Total . | . . . . . Derelict Logs Recovered 1 | . . 1 . . Drone Launches . | . . . . . Drone Recoveries . | . . . . . Exploration | -11 -10 -10 -9 -9 ------------- Run | Yrd Mat Min Mat Min Turns Passed 1069 | 84 603 112 133 137 Spaces Moved 655 | 51 332 82 76 114 Core 45 | 13 1 . . 31 Treads . | . . . . . Legs 610 | 38 331 82 76 83 Wheels . | . . . . . Hover . | . . . . . Flight . | . . . . . Fastest Speed 50 | 50 120 120 120 100 Average Speed 122 | 137 123 120 120 115 Slowest Speed 250 | 250 250 120 120 150 Overloaded Moves . | . . . . . Propulsion Burnouts . | . . . . . Robots Hopped . | . . . . . Cave-ins Triggered . | . . . . . Exploration Rate (%) 21 | 4 32 32 8 33 Regions Visited 4 Branch Regions 2 Pre-discovered Areas . | . . . . . Known Exits Taken . | . . . . . Unknown Exits Taken 4 | 1 1 1 1 . Scrap Searched 1 | . . 1 . . Spaces Dug . | . . . . . Terrain Destroyed . | . . . . . Melee . | . . . . . Projectile . | . . . . . AOE . | . . . . . Terrain Rammed . | . . . . . Walls Destroyed . | . . . . . Machines Disabled . | . . . . . Actions | -11 -10 -10 -9 -9 --------- Run | Yrd Mat Min Mat Min Total 834 | 62 462 90 101 119 Wait 71 | . 65 . 4 2 Move 651 | 50 331 81 75 114 Hop . | . . . . . Pick Up 22 | 6 11 . 5 . Fast Attach 12 | 6 4 2 . . Attach 7 | . 3 . 3 1 Detach . | . . . . . Swap 9 | . 3 1 3 2 Drop 16 | . 10 3 3 . Fire 46 | . 35 3 8 . Melee . | . . . . . Ram . | . . . . . Kick . | . . . . . Crush . | . . . . . Escape Stasis . | . . . . . Rewire . | . . . . . Trap . | . . . . . Miscellaneous . | . . . . . Route ------- -11/Scrapyard -10/Materials -10/Mines -9/Materials -9/Mines History --------- Turn | Location | Event 20 | -11/Scrapyard | Discovered new exit (range 16) 85 | -11/Scrapyard | Entered Materials 323 | -10/Materials | Build established: Mutant 357 | -10/Materials | Lost 3 parts (1p2w) 641 | -10/Materials | Discovered new exit (range 16) 688 | -10/Materials | Entered Mines 692 | -10/Mines | Learned 2 Materials zone layouts 716 | -10/Mines | Discovered new exit (range 15) 800 | -10/Mines | Entered Materials 800 | -9/Materials | Accompanied by 1 ally 800 | -9/Materials | Evolved 2 slots: Utility x1, Weapon x1 825 | -9/Materials | Discovered new exit (range 18) 933 | -9/Materials | Entered Mines 967 | -9/Mines | Assembled infested the area 1047 | -9/Mines | Core integrity fell below 50% 1050 | -9/Mines | Core integrity fell below 20% 1070 | -9/Mines | Destroyed by D-53 Grenadier with Mini Grenade Launcher Last Messages --------------- 01028_ T-07 Excavator destroyed. 01028_ Core Extractor disabled. 01029_ Acquired 17 matter. 01034_ Shock Rifle destroyed. 01037_ Aluminum Leg destroyed. 01037_ Lgt. Assault Rifle destroyed. 01045_ T-07 Excavator destroyed. 01050_ The unstable cave ceiling collapses. 01058_ as-44147 destroyed. 01058_ as-82009 destroyed. 01058_ as-80188 destroyed. 01058_ Heat Sink destroyed. 01058_ as-45583 destroyed. 01058_ as-58688 destroyed. 01059_ The unstable cave ceiling collapses. 01060_ D-53 Grenadier destroyed. 01062_ The unstable cave ceiling collapses. 01062_ as-62137 destroyed. 01062_ as-75965 destroyed. 01063_ The unstable cave ceiling collapses. Map ----- +----------------------------------------------------+ | ??????????????? ????????# ## # | | ??????????????? ????????# ### | | ??????????????? ????????# #?? | | ??????????????? ???????## #?? | | ??????????????? ??????## ##?? | | ??????????????? ?????## ##??? | | ??????????????? ?????# ####???? | | ??????????????# ?????# #?????? | | ??????????????# #????# #??????? | | ?????????????? #???## #??????? | | ??????????????# #??## #??????? | | ??????????????# #?## ###??????? | | ??????????????# #?# # #????????? | | ??????????????# #?# #?????????? | | ?????????????##t### ###???????? | | ?????????????# # #######?? | | ????????????## ## #?? | | ???????????## # #?? | | ???????????# # % ##### #?? | | ???????????# d ###???????? | | ???????????## #?????????? | | ????????????# #?????????? | | ????????????# #??????????? | | ????????????## #??????????? | | ?????????????# # ##??????????? | | ?????????????# @## ## ###???????????? | | ?????????????# ? #????????????????? | | ?????????????# #???????????????? | | ?????????????###### ??????????????? | | ???????????????????# ????????????? | | ????????????????????# ??????????? | | ????????????????????? ##?????????? | | ????????????????????? * ##??????????? | | ????????????????????? %! #???????????? | | ????????????????????? = #???????????? | | ????????????????????? ? #??????????? | | ????????????????????? ????#??????????? | | ????????????????????? ?????????????????? | | ???????????????????????????????????????? | | ???????????????????????????????????????? | | ???????????????????????????????????????? | | ???????????????????????????????????????? | | ???????????????????????????????????????? | | ???????????????????????????????????????? | | ???????????????????????????????????????? | | ???????????????????????????????????????? | | ???????????????????????????????????????? | | ???????????????????????????????????????? | | ???????????????????????????????????????? | | ???????????????????????????????????????? | +----------------------------------------------------+ Best States ------------- Heat Dissipation 42 Energy Generation 14 Energy Capacity 250 Matter Stores 300 Matter Capacity 300 Sight Range 18 Terrain Scan Density 10 ECM Strength 1 Evasion (%) 55 Item Schematics ----------------- None Robot Schematics ------------------ None Fabricated ------------ Nothing Alien Tech Used ----------------- None Achievements -------------- None Challenges ------------ None Game ------ Seed AngularCentriumMeganuke Manual? 0 Play Time 00:22:14 Cumulative 12.8 hours Start 2024.11.22 @ 21:43:36 End 2024.11.22 @ 22:04:27 Sessions 1 Manual Loads 0 Difficulty Rogue Special Mode None Game No. 14 Rogue 14 Adventurer 0 Explorer 0 Win Type - Total 0 Types 0/0/0/0/0/0/0/0/0 Lore% 11 Gallery% 16 Achievement% 14 Wizard Run 0 Options --------- Layout 1 ASCII 0 Keyboard 0 Movement Arrows Keybinds 0 Fullscreen 1 Font 24/Smallcaps Map View 76x35 Zoom Use 0% Tactical HUD 1 Map Filters NONE Filters NONE Steam 1 RUN: 42a128e5-8786-4201-9d83-63fbf3780010